Workbook

Sheet holding down bolt design
B1: version: 1.0. - FREE LITE VERSION | S1: © 2015 Damian Janicki
E2: YourSpreadsheets™ 2nd Floor, 52 Marcus Hill, London www.YourSpreadsheets.co.uk Tel: 020 7542 8734 | P2: TEST PROJECT
W3: Revision | Z3: B
P4: Job No: | T4: 22668 | W4: Page: | Z4: C/01
C5: Section: | E5: TEST MEMBER | P5: Prepared By: | T5: DJ | W5: Date: | Z5: =TODAY() -> 2015-02-23
AJ6: Holding down bolts - simplified check | AN6: =M13 -> 550 | AO6: =M23 -> 46 | AP6: Picture1A | AQ6: =OR(AND(G8=AJ6,G9=AG8),AND(G8=AJ7,G9=AG8)) -> FALSE
C7: BOLT AND CONCRETE DATA | P7: DIAGRAM: SECTION | AJ7: Cast-in holding down bolts | AN7: =M14 -> 50 | AO7: ="M"&30 -> M30 | AP7: Picture1B | AQ7: =OR(AND(G8=AJ6,G9=AG9),AND(G8=AJ7,G9=AG9)) -> FALSE
C8: Structure type: | G8: Post-grouted holding down bolts | AE8: 3 | AG8: Based on overall length of bolt | AJ8: Post-grouted holding down bolts | AN8: =M15 -> 3 | AO8: =M77 -> 300 | AP8: Picture3A | AQ8: =AND(G8=AJ8,G9=AG8) -> TRUE
C9: Calculation type: | G9: Based on overall length of bolt | AG9: Based on bolt embedment depth | AJ9: Holding down bolts with anchor plates | AN9: =M16 -> 25 | AO9: =M75&"x"&M76 -> 50x50 | AP9: Picture3B | AQ9: =AND(G8=AJ8,G9=AG9) -> FALSE
C10: Bolt type: | G10: Grade 8.8 black bolts | AE10: =MATCH($G$8,$AJ$6:$AJ$9,0) -> 3 | AN10: =M17 -> 50 | AP10: Picture4 | AQ10: =G8=AJ9 -> FALSE
C11: Applied factored tension force per bolt 'Ft' [kN] = | M11: 100
C12: Bolt diameter 'dbolt' [mm] = | M12: 30 | AG12: Grade 4.6 black bolts | AH12: 240 | AJ12: Bolts are adequate. | AM12: Bolt with limited length of thread
C13: =IF(G9=AG8,"Bolt overall length","Bolt embedment depth") -> Bolt overall length | K13: Lbolt' [mm] = | M13: 550 | AG13: Grade 8.8 black bolts | AH13: 560 | AJ13: Bolts are NOT adequate. | AM13: Bolt threaded full length
C14: Clear projection of bolt above nut 'Lprojection' [mm] = | M14: 50 | AG14: Grade 10.9 black bolts | AH14: 700
C15: Washer thickness 'twasher' [mm] = | M15: 3 | AG15: Untorqued general grade HSFG bolts | AH15: 515 | AJ15: Relatively smooth
C16: Baseplate thickness 'tbaseplate' [mm] = | M16: 25 | AG16: Untorqued higher grade HSFG bolts | AH16: 700 | AJ16: Relatively rough
C17: Grout thickness 'tgrout' [mm] = | M17: 50 | AK17: N/A
C18: Bolt centre to centre spacing 'X' [mm] = | M18: 300
C19: Concrete shear strength 'vc' [N/mm2] = | M19: 0.34 | AG19: 12 | AH19: 10 | AI19: 10 | AJ19: 10 | AK19: 11 | AL19: =AK17 -> N/A
C20: =IF(AND($G$8=$AJ$9,$M$109>1000),"Shear stress at critical perimeter is greater than allowable",IF(M28=AK17,"Incorrect bolt diameter for this bolt type","")) ->  | AG20: 16 | AH20: 13 | AI20: 13 | AJ20: 13 | AK20: 15 | AL20: 15
C21: ADDITIONAL DATA FOR POST-GROUTED BOLTS | P21: SUMMARY OF RESULTS | AG21: 20 | AH21: 16 | AI21: 16 | AJ21: 16 | AK21: 18 | AL21: 18
C22: Inside surface of drill hole: | J22: Relatively rough | P22: Tension capacity of bolt: | X22: =$M$30 -> 251.328 | Z22: =IF(X22>=AA22,">","<") -> > | AA22: =100 -> 100 | AG22: 22 | AH22: 18 | AI22: 18 | AJ22: 18 | AK22: 19 | AL22: 19 | AR22: =IF(X22<AA22,"NOT OK",".") -> .
C23: Average hole diameter 'dhole' [mm] = | M23: 46 | P23: =IF($G$8=$AJ$9,"Concrete shear strength:","Concrete pull-out resistance per bolt:") -> Concrete pull-out resistance per bolt: | X23: =IF($G$8=$AJ$9,FIXED($M$19,2),$M$35) -> 179.41664 | Z23: =IF(X23>=AA23,">","<") -> > | AA23: =IF($G$8=$AJ$9,FIXED($M$109,2)&" MPa",100) -> 100 | AG23: 24 | AH23: 19 | AI23: 19 | AJ23: 19 | AK23: 22 | AL23: 22 | AR23: =IF(X23<AA23,"NOT OK",".") -> .
C24: Grout design anchorage bond stress 'fbu' [N/mm2] = | M24: 3 | P24: Bolt anchorage bond strength: | X24: =IF($G$8=$AJ$7,$M$93,IF($G$8=$AJ$8,$M$39,"N/A")) -> 3 | Z24: =IF(OR($G$8=$AJ$7,$G$8=$AJ$8),IF(X24>=AA24,">","<"),"") -> > | AA24: =IF(OR($G$8=$AJ$7,$G$8=$AJ$8),$M$91,"") -> 2.665911945 | AG24: 27 | AH24: 22 | AI24: 22 | AJ24: 22 | AK24: 24 | AL24: 24 | AR24: .
C25: Concrete characteristic strength 'fcu' [N/mm2] = | M25: 35 | P25: Hole anchorage bond strength: | X25: =IF($G$8=$AJ$8,$M$46,"N/A") -> 2.958039892 | Z25: =IF($G$8=$AJ$8,IF(X25>=AA25,">","<"),"") -> > | AA25: =IF($G$8=$AJ$8,$M$42,"") -> 1.738638225 | AG25: 30 | AH25: 24 | AI25: 24 | AJ25: 24 | AK25: 26 | AL25: 26 | AR25: .
P26: =IF(AND(X22>=AA22,X23>=AA23,OR(X24>=AA24,X24=AK17),OR(X25>=AA25,X25=AK17)),$AJ$12,$AJ$13) -> Bolts are adequate. | AG26: 33 | AH26: 26 | AI26: 26 | AJ26: 26 | AK26: =AK17 -> N/A | AL26: 29
C27: CALCULATIONS: BOLT TENSION CAPACITY | AG27: 36 | AH27: 29 | AI27: 29 | AJ27: 29 | AK27: 31 | AL27: =AK17 -> N/A
C28: Bolt nut thickness 'tnut' [mm] = | M28: =INDEX(AG19:AL27,MATCH(30,AG19:AG27,0),1+MATCH(G10,AG12:AG16,0)) -> 24 | P28: DESIGNER'S NOTES
C29: Bolt tensile strength 'pt' [N/mm2] = | M29: =INDEX(AG12:AH16,MATCH(G10,AG12:AG16,0),2) -> 560 | P29: Additional user notes about the design
C30: Nominal tension capacity of bolt 'Pnom' [kN] = | M30: =0.8*M29*INDEX(AG30:AH38,MATCH(30,AG30:AG38,0),2)/1000 -> 251.328 | AG30: 12 | AH30: 84.3
AG31: 16 | AH31: 157
C32: CALCULATIONS: CONCRETE PULL-OUT RESISTANCE | AG32: 20 | AH32: 245
C33: Bolt embedment depth 'D' [mm] = | M33: =IF($G$9=$AG$9,$M$13,$M$13-$M$14-$M$28-$M$15-$M$16-$M$17) -> 398 | AG33: 22 | AH33: 303
C34: Eff. conical surface area of two bolts 'AD' [cm2] = | M34: =IF(M18>=2*M33,8.886*M33^2/100,AI55*10) -> 10553.92 | AG34: 24 | AH34: 353
C35: Concrete pull-out resistance per bolt 'Ptc' [kN] = | M35: =M34*M19/2/10 -> 179.41664 | AG35: 27 | AH35: 459
AG36: 30 | AH36: 561
C37: BOND STRESS CHECK: BOLT/GROUT INTERFACE | AG37: 33 | AH37: 694
C38: Bolt anchorage bond stress 'fb' [N/mm2] = | M38: =$M$91 -> 2.665911945 | AG38: 36 | AH38: 817
C39: Grout design anchorage bond stress 'fbu1' [N/mm2] = | M39: =$M$24 -> 3
C41: BOND STRESS CHECK: GROUT/CONCRETE INTERFACE | AH41: 100 | AI41: 150 | AJ41: 200 | AK41: 300 | AL41: 450 | AM41: 600 | AN41: 750 | AO41: 1000
C42: Hole anchorage bond stress 'fb' [N/mm2] = | M42: =100*1000/(PI()*$M$23*$M$33) -> 1.738638225 | AG42: 100 | AH42: 71.5 | AI42: 82.5 | AJ42: 88.9 | AK42: 88.9 | AL42: 88.9 | AM42: 88.9 | AN42: 88.9 | AO42: 88.9 | AQ42: =AG49 -> 1000
C43: Coefficient dependent on surface inside hole 'β' = | M43: =IF(J22=AJ15,0.28,0.5) -> 0.5 | AG43: 150 | AH43: 141.6 | AI43: 160.8 | AJ43: 178 | AK43: 199.9 | AL43: 199.9 | AM43: 199.9 | AN43: 199.9 | AO43: 199.9 | AQ43: =AG48 -> 750
C44: Grout design anchorage bond stress 'fbu1' [N/mm2] = | M44: =$M$24 -> 3 | AG44: 200 | AH44: 233.7 | AI44: 260.5 | AJ44: 285.9 | AK44: 329.8 | AL44: 355.4 | AM44: 355.4 | AN44: 355.4 | AO44: 355.4 | AQ44: =AG47 -> 600
C45: Conc. design anchorage bond stress 'fbu2' [N/mm2] = | M45: =M43*(M25)^0.5 -> 2.958039892 | AG45: 300 | AH45: 484.3 | AI45: 525.8 | AJ45: 566.4 | AK45: 643.4 | AL45: 742 | AM45: 799.7 | AN45: 799.7 | AO45: 799.7 | AQ45: =AG46 -> 450
C46: Allowable anchorage bond stress 'fbu' [N/mm2] = | M46: =MIN($M$24,$M$45) -> 2.958039892 | AG46: 450 | AH46: 1027 | AI46: 1090 | AJ46: 1152 | AK46: 1274 | AL46: 1448 | AM46: 1602 | AN46: 1728 | AO46: 1799 | AQ46: =AG45 -> 300
AG47: 600 | AH47: 1769 | AI47: 1853 | AJ47: 1937 | AK47: 2103 | AL47: 2345 | AM47: 2574 | AN47: 2784 | AO47: 3072 | AQ47: =AG44 -> 200
AG48: 750 | AH48: 2711 | AI48: 2817 | AJ48: 2922 | AK48: 3131 | AL48: 3439 | AM48: 3737 | AN48: 4021 | AO48: 4451 | AQ48: =AG43 -> 150
AG49: 1000 | AH49: 4726 | AI49: 4867 | AJ49: 5008 | AK49: 5288 | AL49: 5705 | AM49: 6114 | AN49: 6513 | AO49: 7149 | AQ49: =AG42 -> 100
AG51: =$M$33 -> 398 | AH51: =IF($AG$52=$AG$53,INDEX(AH42:AH49,$AG$52),($AG$51-INDEX($AG$42:$AG$49,$AG$52))*(INDEX(AH42:AH49,$AG$53)-INDEX(AH42:AH49,$AG$52))/(INDEX($AG$42:$AG$49,$AG$53)-INDEX($AG$42:$AG$49,$AG$52))+INDEX(AH42:AH49,$AG$52)) -> 838.864 | AI51: =IF($AG$52=$AG$53,INDEX(AI42:AI49,$AG$52),($AG$51-INDEX($AG$42:$AG$49,$AG$52))*(INDEX(AI42:AI49,$AG$53)-INDEX(AI42:AI49,$AG$52))/(INDEX($AG$42:$AG$49,$AG$53)-INDEX($AG$42:$AG$49,$AG$52))+INDEX(AI42:AI49,$AG$52)) -> 894.4106667 | AJ51: 948.992 | AK51: 1055.392 | AL51: 1203.253333 | AM51: 1323.869333 | AN51: 1406.189333 | AO51: 1452.576
AG52: =MATCH($AG$51,AG42:AG49,1) -> 4
AG53: =9-MATCH($AG$51,AQ42:AQ49,-1) -> 5
C54: NOTES:
C55: - these calculations assume there is no shear load applied to the holding down bolts; | AH55: =$M$18 -> 300 | AI55: =IF($AH$56=$AH$57,INDEX($AH$51:$AO$51,1,$AH$56),($AH$55-INDEX($AH$41:$AO$41,1,$AH$56))*(INDEX($AH$51:$AO$51,1,$AH$57)-INDEX($AH$51:$AO$51,1,$AH$56))/(INDEX($AH$41:$AO$41,1,$AH$57)-INDEX($AH$41:$AO$41,1,$AH$56))+INDEX($AH$51:$AO$51,1,$AH$56)) -> 1055.392
C56: - bolts cannot be closer to the edge distance of a foundation than 1.5 x bolt embedment depth; | AH56: =MATCH($AH$55,AH41:AO41,1) -> 4
C57: - (for anchor plate design only) anchor plate cannot be closer to the edge distance of a foundation than 2.0 x Dplate ; | AH57: =9-MATCH($AH$55,AQ42:AQ49,-1) -> 4
C58: =IF($G$8=$AJ$6,"- bolts require adequate anchorage by suitable sized washer or similar below bolt head.","") -> 
C60: Spreadsheet provided by: www.YourSpreadsheets.co.uk | AB60: calculations are based on BS5950 (2000), BS8110 (1997) and Concrete Society Advice No. 05
C63: ADDITIONAL DATA FOR CAST-IN BOLTS | O63: case 2
C64: Bolt surface type: | G64: Bolt threaded full length
C65: Concrete characteristic strength 'fcu' [N/mm2] = | M65: 35 | Q65: <- do not delete, used to fill in grey areas in main sheet
O67: case 3
C73: ADDITIONAL DATA FOR ANCHOR PLATES | O73: case 4
C74: Bolt surface type: | G74: Bolt threaded full length
C75: Anchor plate length 'lplate' [mm] = | M75: 50
C76: Anchor plate width 'wplate' [mm] = | M76: 50
C77: Anchor plate depth from CL of top rebar 'Dplate' [mm] = | M77: 300
C78: Concrete characteristic strength 'fcu' [N/mm2] = | M78: 35
O80: always
O85: case 1, 2, 3
C90: CALCULATIONS: BOND STRESS CHECK | O90: case 2
C91: Bolt anchorage bond stress 'fb' [N/mm2] = | M91: =100*1000/(PI()*30*$M$33) -> 2.665911945
C92: Coefficient dependent on bolt surface type 'β' = | M92: =IF(G64=AM12,0.28,0.5) -> 0.5
C93: Allowable anchorage bond stress 'fbu' [N/mm2] = | M93: =M92*(M65)^0.5 -> 2.958039892
O95: case 3
O99: case 3
C106: CALCULATIONS: CONCRETE PULL-OUT RESISTANCE | O106: case 4
C107: Anchor plate perimeter length 'u0' [mm] = | M107: =2*$M$75+2*$M$76 -> 200
C108: Effective punching shear perimeter 'u' [mm] = | M108: =12*$M$77+2*$M$75+2*$M$76 -> 3800
C109: Shear stress at critical perimeter 'v' [N/mm2] = | M109: =100*1000/$M$108/$M$77 -> 0.08771929825
C110: Conc. max. allowable shear stress 'vmax' [N/mm2] = | M110: =MIN(5,0.8*M78^0.5) -> 4.732863826

Sheet from author
B1: Version: 1.0. - FREE LITE VERSION | G1: © 2015 Damian Janicki
C3: For latest updates and news visit: | G3: Contact me at:
C4: www.YourSpreadsheets.co.uk | G4: info@yourspreadsheets.co.uk
C7: General information: Note: This spreadsheet contains macros.
C13: The Author takes no liability for use of this spreadsheet and gives no guarantee that it is error free. In no event shall the Author be responsible for any special, incidental or consequential damages whatsoever arising from the use of this spreadsheet, even if the Author has been advised of the possibility of such damage. This spreadsheet is a freeware and can be distributed freely but only in its original form. Reverse-engineering, decompiling or disassembling of this spreadsheet is not allowable. By using this spreadsheet you understand and agree with the above terms and conditions. You also acknowledge that you do not become the owner of this spreadsheet. Damian Janicki
C34: This is a Free Lite Version. The full version of the spreadsheet allows to: - Input your company information, change logo and change header information - Change applied load - Change bolt diameter
C41: This spreadsheet is based on BS5950, BS8110 and Concrete Society Advice No. 05. Changelog: 22.02.2015 - v.1.0. - official release of the spreadsheet.
